Cogmind - Beta 15 @@@ ROGUE MODE // 2025.08.30 @ 20:47:28 Player: Purgatorian Result: Destroyed by S-10 Pest with Light Assault Rifle Performance ------------- Evolutions (1) 500 Regions Visited (3) 600 Robots Destroyed (38) 190 Value Destroyed (1166) 1166 Prototype IDs (0) 0 Alien Tech Used (0) 0 Bonus (0) 0 TOTAL SCORE: 2456 Bonus ------- None Cogmind --------- Core Integrity 0/400 Matter 258/300 Energy 100/100 System Corruption 4% Temperature Cool (0) Movement Core (50) Location -9/Mines Parts ------- > --- POWER (1) -------- (None) > --- PROPULSION (2) --- (None) > --- UTILITY (4) ------ (None) > --- WEAPON (2) ------- (None) > --- INVENTORY (5) ---- Light Nuclear Core Improved Light Armor Plating Insulated Plating Peak State ------------ > --- POWER ------------ Light Nuclear Core > --- PROPULSION ------- Aluminum Leg Aluminum Leg > --- UTILITY ---------- Large Storage Unit Terrain Scanner Terrain Scan Processor Improved Light Armor Plating > --- WEAPON ----------- Spread Laser Heavy Assault Rifle > --- INVENTORY -------- Ion Engine Light Nuclear Core Light Treads Aluminum Leg Heat Sink Large Storage Unit Small Matter Pod Core Shielding Improved Light Armor Plating Improved Light Armor Plating Insulated Plating Particle Gun [Rating: 18] Favorites ----------- Power Light Nuclear Core Engine Ion Engine Power Core Light Nuclear Core Propulsion Light Treads Treads Light Treads Leg Aluminum Leg Flight Unit Flight Unit Utility Large Storage Unit Device Terrain Scanner Storage Large Storage Unit Processor Terrain Scan Processor Protection Improved Light Armor Plating Weapon Heavy Assault Rifle Energy Gun Spread Laser Ballistic Gun Heavy Assault Rifle Special Weapon Mining Laser Build | -11 -10 -9 -9 ------- Run | Yrd Mat Mat Min Slots Evolved 2 | . . 2 . Power . | . . . . Propulsion . | . . . . Utility 2 | . . 2 . Weapon . | . . . . Parts Attached 42 | 7 8 18 9 Power 9 | 2 1 4 2 Engine 4 | 2 . 1 1 Core 5 | . 1 3 1 Reactor . | . . . . Propulsion 12 | 2 2 4 4 Treads 6 | . 2 2 2 Leg 4 | 2 . 2 . Wheel . | . . . . Hover . | . . . . Flight 2 | . . . 2 Utility 10 | 1 2 6 1 Device 2 | . . 1 1 Storage 4 | 1 1 2 . Processor 1 | . . 1 . Hackware . | . . . . Protection 3 | . 1 2 . Artifact . | . . . . Weapon 11 | 2 3 4 2 Energy Gun 4 | 1 1 2 . Energy Cannon . | . . . . Ballistic Gun 6 | 1 2 2 1 Ballistic Cannon . | . . . . Launcher . | . . . . Special Weapon 1 | . . . 1 Impact Weapon . | . . . . Slashing Weapon . | . . . . Piercing Weapon . | . . . . Special Melee Weapon . | . . . . Unidentified Prototypes . | . . . . Corrupted Parts 1 | . . . 1 System Corruption 3 | . . . 3 Parts Lost 9 | . 1 2 6 Power . | . . . . Propulsion 3 | . 1 1 1 Utility 1 | . . . 1 Weapon 5 | . . 1 4 Highest Loss Streak 4 | . 1 1 4 To Critical Strikes . | . . . . Average Backups 9 | 4 7 11 10 Power 1 | . 1 1 1 Propulsion 2 | 2 3 3 1 Utility 3 | . 1 4 4 Weapon 1 | 1 1 2 2 Tool/Special . | . . . . Unused Backups 15 | . . 8 7 Power 2 | . . 1 1 Propulsion 7 | . . 6 1 Utility 5 | . . . 5 Weapon 1 | . . 1 . Tool/Special . | . . . . Average Slot Usage (%) 87 | . 84 95 73 Engine 2 | . 5 . 2 Core 9 | . 8 10 7 Treads 14 | . 14 15 13 Leg 6 | . 11 5 1 Flight 1 | . . . 4 Device 4 | . . 2 13 Storage 14 | . 14 18 7 Processor 2 | . . 2 7 Protection 8 | . 2 16 1 Energy Gun 10 | . 12 12 1 Ballistic Gun 11 | . 14 8 12 Peak Build Rating 18 | 6 10 18 18 Average Rating 11 | 3 7 15 11 On Entrance 8 | . 6 10 18 Naked Turns 50 | . . . 50 Heaviest Build 36 | 13 30 36 35 Greatest Support 40 | 20 40 40 40 Greatest Overweight (x) 11 | . 9 11 1 Average Overweight (x) . | . . . . Largest Inventory Capacity 15 | 8 15 15 15 Average Capacity 12 | 6 9 15 11 Most Carried 15 | 8 9 15 15 Average Carried 9 | 5 7 12 9 Final Capacity 15 | 8 15 15 5 Final Carried 13 | 6 9 13 3 Class Distribution -------------------- 75% | Mutant 24% | Scavenger-Mutant Dominant Class ---------------- Mutant | -10/Materials Mutant | -9/Materials Scavenger-Mutant | -9/Mines Resources | -11 -10 -9 -9 ----------- Run | Yrd Mat Mat Min Matter Collected 1027 | 234 211 375 207 Remotely . | . . . . Salvage Created 1271 | . 359 738 174 Parts 75 | . 18 48 9 Haulers Intercepted . | . . . . Recyclers Shooed 2 | . 2 . . Parts Field Recycled . | . . . . Retrieved Matter . | . . . . Parts Self-Destructed . | . . . . Prevented . | . . . . Kills | -11 -10 -9 -9 ------- Run | Yrd Mat Mat Min Combat Hostiles Destroyed 31 | . 9 17 5 Guns 30 | . 9 17 4 Cannons 1 | . . . 1 Classes Destroyed 8 | . 3 5 . Worker 1 | . . 1 . Builder 1 | . . 1 . Watcher 5 | . 2 3 . Swarmer 4 | . 3 . 1 Grunt 20 | . 6 12 2 Brawler 1 | . . 1 . Duelist 1 | . . 1 . Sentry 5 | . . 3 2 Best Kill Streak 8 | . 4 8 2 Combat Bots Only 7 | . 3 7 2 Max Kills in Single Turn 2 | . 2 1 1 Gunslinging 1 | . 1 . . Exploded . | . . . . Melee . | . . . . Uniques/NPCs Destroyed . | . . . . Combat | -11 -10 -9 -9 -------- Run | Yrd Mat Mat Min Hostile Shots Fired 196 | . 49 81 66 Missed 46 | . 11 22 13 Hits 150 | . 38 59 53 Melee 3 | . . 3 . Projectile 147 | . 38 56 53 AOE 17 | . . . 17 Critical Strikes 3 | . 1 1 1 Actively Blocked 1 | . . 1 . Damage Taken 2139 | . 452 766 921 Core 477 | . 72 88 317 Absorbed by Shields 57 | . . . 57 Redirected to Shielding 18 | . . 18 . Core Remaining (%) 85 | 100 71 . . Volleys Fired 108 | . 39 45 24 Largest 2 | . 2 2 2 Hottest 110 | . 85 110 100 Shots Fired 202 | . 78 85 39 Gun 194 | . 78 85 31 Cannon . | . . . . Launcher . | . . . . Special 8 | . . . 8 Kinetic 105 | . 47 34 24 Thermal 89 | . 31 43 15 Explosive . | . . . . Electromagnetic 8 | . . 8 . Robot Hit Streak 9 | . 6 9 6 Robot Miss Streak 9 | . 5 9 5 Penetration Max . | . . . . Secondary Targets 11 | . 3 7 1 Max Gunslinging Chain 1 | . 1 1 1 Shots Hit Robots 125 | . 41 62 22 Core Hits 115 | . 22 81 12 Critical Kills . | . . . . Critical Parts Destroyed . | . . . . Critical Strikes 1 | . 1 . . Burn 1 | . 1 . . Melee Attacks . | . . . . Impact . | . . . . Slashing . | . . . . Piercing . | . . . . Sneak Attacks . | . . . . Combat Hostiles . | . . . . Follow-up Attacks . | . . . . Damage Inflicted 1863 | . 537 977 349 Guns 1787 | . 527 959 301 Cannons . | . . . . Explosions . | . . . . Melee . | . . . . Ramming 28 | . 10 18 . Kinetic 842 | . 322 299 221 Thermal 887 | . 205 554 128 Explosive . | . . . . Electromagnetic 106 | . . 106 . Impact . | . . . . Slashing . | . . . . Piercing . | . . . . Highest Corruption 4 | . . 1 4 Average Corruption 1 | . . 1 1 Corruption Purged . | . . . . Corruption Blocked . | . . . . Effects 5 | . . 1 4 Message Errors 2 | . . 1 1 Matter Fused 2 | . . . 2 Energy Discharges 1 | . . . 1 Overload Shots . | . . . . Overflow Damage 15 | . . . 15 Projectiles 15 | . . . 15 Explosions . | . . . . Melee . | . . . . Knockbacks . | . . . . Impact . | . . . . Kinetic . | . . . . Secondary . | . . . . Self-Inflicted Damage . | . . . . Shots . | . . . . Rammed 5 | . . 5 . Targets Rammed 9 | . 3 6 . Kicked 4 | . 3 1 . Crushed . | . . . . Highest Temperature 513 | . 312 513 222 Average Temperature 121 | . 95 155 60 Received Heat Transfer 658 | . 246 324 88 Effects 13 | . 2 11 . Shutdowns 1 | . . 1 . Energy Bleed 2 | . 2 . . Interference 2 | . . 2 . Matter Decay 1 | . . 1 . Damage (major) 7 | . . 7 . Siege Activations . | . . . . Martial Activations . | . . . . Shielding Activations . | . . . . Robots Disrupted . | . . . . Combat Hostiles . | . . . . Robots Corrupted . | . . . . Combat Hostiles . | . . . . Parts Fried . | . . . . Impact Corruptions . | . . . . Robots Melted . | . . . . Combat Hostiles . | . . . . Parts Melted 3 | . 3 . . Heat Transferred 1499 | . 558 729 212 Parts Sabotaged . | . . . . Parts Stolen . | . . . . Parts Stripped . | . . . . Power Chain Reactions . | . . . . Alert | -11 -10 -9 -9 ------- Run | Yrd Mat Mat Min Maximum Alert Level 1 | . . 1 . Low Security (%) 95 | 100 100 90 100 Level 1 4 | . . 9 . Level 2 . | . . . . Level 3 . | . . . . Level 4 . | . . . . Level 5 . | . . . . High Security . | . . . . Max Security . | . . . . Peak Influence 230 | . 144 230 90 Initial 50 | . . . 50 Average 71 | . 58 100 41 Influence Increases 883 | . 239 458 186 Destroy 0b10 Robot/C 620 | . 180 340 100 Destroy 0b10 Robot/NC 35 | . 10 25 . Destroy Leader 140 | . 44 86 10 Successful Hack 12 | . 5 7 . Destroy Structure 1 | . . . 1 Lose Combat Pursuer 75 | . . . 75 Influence Decreases 845 | . 239 328 278 Entered New Map 80 | . . . 80 Time Decay 705 | . 229 308 168 Lost Part 50 | . 10 20 20 Lost Ally 10 | . . . 10 Squads Dispatched 4 | . 1 3 . Investigation 1 | . . 1 . Extermination . | . . . . Reinforcement 3 | . 1 2 . Assault . | . . . . Garrison . | . . . . Intercept . | . . . . Searches Triggered . | . . . . Construction Impeded . | . . . . Haulers Reinforced . | . . . . Active Scanning Responses . | . . . . Cargo Convoy Interrupts . | . . . . Stealth | -11 -10 -9 -9 --------- Run | Yrd Mat Mat Min Distress Signals 4 | . 2 2 . Communications Jammed . | . . . . Distress Signals . | . . . . Times Spotted 55 | . 14 29 12 Peak Tracking Total 5 | . 4 5 5 Tactical Retreats 2 | . . . 2 Traps | -11 -10 -9 -9 ------- Run | Yrd Mat Mat Min Traps Triggered 3 | . 2 1 . Indirectly . | . . . . Trap Hack Attempts . | . . . . Triggered . | . . . . Disarmed 6 | . 6 . . Reprogrammed . | . . . . Reused . | . . . . Traps Extracted . | . . . . Installed . | . . . . Triggered . | . . . . Machines | -11 -10 -9 -9 ---------- Run | Yrd Mat Mat Min Machines Disabled . | . . . . Max in Single Turn . | . . . . Machines Repaired . | . . . . Machines Dismantled . | . . . . Machines Sabotaged . | . . . . Overloaded Fab Kills . | . . . . Hacking | -11 -10 -9 -9 --------- Run | Yrd Mat Mat Min Machines Accessed 8 | . 4 4 . Terminals 6 | . 3 3 . Fabricators . | . . . . Repair Stations . | . . . . Recycling Units 1 | . 1 . . Scanalyzers 1 | . . 1 . Garrison Access . | . . . . Total Hacks 17 | . 9 8 . Successful 12 | . 6 6 . Failed 5 | . 3 2 . Catastrophic . | . . . . Database Lockouts . | . . . . Manual 1 | . 1 . . Terminals 13 | . 8 5 . Fabricators . | . . . . Repair Stations . | . . . . Recycling Units 1 | . 1 . . Scanalyzers 3 | . . 3 . Garrison Access . | . . . . Terminal Hacks 10 | . 6 4 . Record 5 | . 3 2 . Alert Level 2 | . 1 1 . Disarm Traps 1 | . 1 . . Maintenance Status 1 | . 1 . . Zone Layout 1 | . . 1 . Fabricator Hacks . | . . . . Repair Station Hacks . | . . . . Recycling Unit Hacks . | . . . . Scanalyzer 2 | . . 2 . Insert Component 1 | . . 1 . Analyze 1 | . . 1 . Garrison Access Hacks . | . . . . Unauthorized Hacks . | . . . . Terminals . | . . . . Fabricators . | . . . . Repair Stations . | . . . . Recycling Units . | . . . . Scanalyzers . | . . . . Garrison Access . | . . . . Data Cores Recovered . | . . . . Used . | . . . . Hacking Detections 4 | . 2 2 . Full Trace Events 1 | . . 1 . Feedback Events 1 | . . 1 . Corruption 1 | . . 1 . Feedback Blocked . | . . . . Robot Schematics Acquired . | . . . . Robots Built . | . . . . Authchips . | . . . . Time . | . . . . Total Robot Build Rating . | . . . . Part Schematics Acquired 1 | . . 1 . Parts Built . | . . . . Authchips . | . . . . Time . | . . . . Total Part Build Rating . | . . . . Parts Repaired . | . . . . Time . | . . . . Parts Recycled . | . . . . Recycled Matter . | . . . . Retrieved Matter . | . . . . Retrieved Components . | . . . . Parts Scanalyzed 1 | . . 1 . Part Schematics Acquired 1 | . . 1 . Parts Damaged . | . . . . Bothacking | -11 -10 -9 -9 ------------ Run | Yrd Mat Mat Min Used RIF Installer . | . . . . Robots Hacked . | . . . . Non-combat . | . . . . Combat . | . . . . Robot Hacks Applied . | . . . . Relay Couplers Released . | . . . . Fabnet Peak Effective % . | . . . . Robots Rewired . | . . . . Allies Hacked . | . . . . Hacks Repelled . | . . . . Allies | -11 -10 -9 -9 -------- Run | Yrd Mat Mat Min Total Allies 3 | . . . 3 Largest Group . | . . . . Highest-Rated Group . | . . . . Highest-Rated Ally . | . . . . Total Orders . | . . . . Ally Attacks . | . . . . Total Damage . | . . . . Kills . | . . . . Allies Corrupted . | . . . . Allies Melted . | . . . . Intel | -11 -10 -9 -9 ------- Run | Yrd Mat Mat Min Active Infowar (turns) 504 | . . 232 272 Terrain 504 | . . 232 272 Robot Analysis Total . | . . . . Derelict Logs Recovered . | . . . . Drone Launches . | . . . . Drone Recoveries . | . . . . Exploration | -11 -10 -9 -9 ------------- Run | Yrd Mat Mat Min Turns Passed 2025 | 84 617 908 416 Spaces Moved 1053 | 60 316 402 275 Core 113 | 9 2 4 98 Treads 604 | . 197 281 126 Legs 289 | 51 117 117 4 Wheels . | . . . . Hover . | . . . . Flight 47 | . . . 47 Fastest Speed 37 | 50 120 160 37 Average Speed 143 | 109 149 173 101 Slowest Speed 600 | 120 500 600 190 Overloaded Moves . | . . . . Propulsion Burnouts . | . . . . Robots Hopped . | . . . . Potential Cave-ins . | . . . . Cave-ins Triggered . | . . . . Exploration Rate (%) 36 | 4 48 39 53 Regions Visited 3 Branch Regions 1 Pre-discovered Areas . | . . . . Known Exits Taken . | . . . . Unknown Exits Taken 3 | 1 1 1 . Scrap Searched 1 | . . . 1 Spaces Dug 4 | . . . 4 Terrain Destroyed 4 | . . . 4 Melee . | . . . . Projectile 4 | . . . 4 AOE . | . . . . Terrain Rammed . | . . . . Walls Destroyed . | . . . . Machines Disabled . | . . . . Actions | -11 -10 -9 -9 --------- Run | Yrd Mat Mat Min Total 1363 | 78 386 541 358 Wait 46 | . 3 6 37 Move 1051 | 59 315 402 275 Hop . | . . . . Pick Up 51 | 12 6 28 5 Fast Attach 14 | . 9 3 2 Attach 31 | 6 2 17 6 Detach 17 | . 2 13 2 Swap 6 | 1 3 . 2 Drop 31 | . 4 22 5 Fire 108 | . 39 45 24 Melee . | . . . . Ram . | . . . . Kick 3 | . 3 . . Crush 5 | . . 5 . Escape Stasis . | . . . . Rewire . | . . . . Trap . | . . . . Miscellaneous . | . . . . Route ------- -11/Scrapyard -10/Materials (discovered 2 exits: *Mat / [*Min]) -9/Materials -9/Mines History --------- Turn | Location | Event 23 | -11/Scrapyard | Discovered new exit (range 16) 85 | -11/Scrapyard | Entered Materials 178 | -10/Materials | Discovered new exit (range 7) 323 | -10/Materials | Build established: Mutant 580 | -10/Materials | Discovered new exit (range 16) 702 | -10/Materials | Entered another Materials area 702 | -9/Materials | Evolved 2 slots: Utility x2 1042 | -9/Materials | Discovered new exit (range 11) 1346 | -9/Materials | Destroyed 7 combat bots 1610 | -9/Materials | Entered Mines 1677 | -9/Mines | Build established: Scavenger-Mutant 1832 | -9/Mines | Assembled infested the area 1875 | -9/Mines | Assisted by bots powering up and referring to "LRC-V3" 1882 | -9/Mines | Released all parts (6) 1883 | -9/Mines | Core integrity fell below 50% 1906 | -9/Mines | Lost 3 allies 1908 | -9/Mines | Core integrity fell below 20% 1913 | -9/Mines | Lost 4 parts (1u3w) 2022 | -9/Mines | Released all parts (2) 2026 | -9/Mines | Destroyed by S-10 Pest with Light Assault Rifle Last Messages --------------- Acquired 7 matter. Acquired Flight Unit. Acquired Corrupted Flight Unit. Integrated Corrupted Flight Unit (+3). S-10 Pest destroyed. T-07 Excavator is excavating. System corrupted: Matter fused (-6). T-07 Excavator is excavating. UOB ZZO,SRZL,OX5CG%FWDHTB43| B T-07 Excavator is excavating. Destroyed Flight Unit. T-07 Excavator is excavating. Destroyed Flight Unit. S-10 Pest destroyed. Flight Unit destroyed. T-07 Excavator is excavating. Mining Laser destroyed. System corrupted: Matter fused (-6). Released Ion Engine. Released Flight Unit. Map ----- +----------------------------------------------------+ | | | | | | | | | | | | | | | | | | | ?????????????????????????????????????????? | | ?????????????????????????????????????????? | | ????????????????????????????????######???? | | ?????????????????????????????#### ##### | | ???????????????????????????###"# | | ??????????????????????????## """ | | ???????????????? ####### """ | | ???????????????? """ | | ????????????????? | | ????????????????????????# #### | | ???????????????????????## ##??# | | ??????????????????????## ###### ## | | ??????????????????????# ##"## ## | | ??????????????????????# ## | | ??????????????????????# # | | ????????????########### ## ###### | | ????????????#s @ #?# "# ###### | | ????????????# ######### ###?# #""##?#??# | | ??????####### ######??# %#####%* ##???#?# | | ????### # *= #??# [% % #####?# | | ????# ## " #??# *= *%%% #?# | | ???# # #??########%%% #### ### | | ???# * #?????????#%!=##??? ?## | | ???# #?????????%%%%"#??#?? | | ???# # """ """ #????????? % ##??#?### | | ???####### """ """ #?????????#%%##?### ### | | ?????????# """ """ #?????????#%##????# | | ?????????###########?????????# #?#???# | | ?????????????????????????????# ##????###%# | | ?????????????????????????????# ?????#?## ? | | ?????????????????????????????? ???????##?? | | ?????????????????????????????? #??#?#????# | | ??????????????????????????????"???##?????? | | ??????????????????????????????#??????????# | | ????????????????????????????????##????? ? | | ????????????????????????????????## ?????? | | ??????????????????????????????????? ??? ? | | ??????????????????????????????????????#? | | ????????????????????????????????????????#? | | ???????????????????????????????????????#?? | | ?????????????????????????????????????????? | +----------------------------------------------------+ Best States ------------- Heat Dissipation 28 Energy Generation 14 Energy Capacity 265 Matter Stores 350 Matter Capacity 350 Sight Range 16 Terrain Scan Range 14 Terrain Scan Density 85 Armor Coverage 150 Core Shielding 20 Evasion (%) 62 Recoil Reduction 2 Item Schematics ----------------- Aluminum Leg | -9/Materials | Scanalyzed Robot Schematics ------------------ None Fabricated ------------ Nothing Repaired ---------- Nothing Alien Tech Used ----------------- None Achievements -------------- None Challenges ------------ None Game ------ Seed PhaseTeleporterArticulator Manual? 0 Play Time 01:00:55 Cumulative 4.2 hours Start 2025.08.30 @ 19:45:20 End 2025.08.30 @ 20:47:28 Sessions 1 Manual Loads 0 Difficulty Rogue Special Mode None Game No. 4 Rogue 4 Adventurer 0 Explorer 0 Win Type - Total 0 Types 0/0/0/0/0/0/0/0/0/0 Lore% 2 Gallery% 7 Achievement% 9 Wizard Run 0 Options --------- Layout 1 ASCII 0 Keyboard 0 Movement Numpad Keybinds 0 Fullscreen 1 Font 32/SmallcapsGlow Map View 50x35 Zoom Use 0% Tactical HUD 0 Map Filters NONE Filters NONE Steam 1 RUN: a1811169-c149-4e46-99ca-ce0027fd1cab